Workbook

Sheet Timestables
B2: Timestables (MNU 2-02a MNU 2-03a)
G7: =ROUND(RAND()*(12-1)+1,0) -> 6 | O7: =ROUND(RAND()*(12-1)+1,0) -> 6
E8: =CONCATENATE(G7," x ",G8) -> 6 x 7 | G8: =ROUND(RAND()*(12-1)+1,0) -> 7 | M8: =CONCATENATE(O7," x ",O8) -> 6 x 2 | O8: =ROUND(RAND()*(12-1)+1,0) -> 2
G9: =G7*G8 -> 42 | O9: =O7*O8 -> 12
G11: =ROUND(RAND()*(12-1)+1,0) -> 6 | O11: =ROUND(RAND()*(12-1)+1,0) -> 6
E12: =CONCATENATE(G11," x ",G12) -> 6 x 5 | G12: =ROUND(RAND()*(12-1)+1,0) -> 5 | M12: =CONCATENATE(O11," x ",O12) -> 6 x 5 | O12: =ROUND(RAND()*(12-1)+1,0) -> 5
G13: =G11*G12 -> 30 | O13: =O11*O12 -> 30

Sheet Place_Value
C2: Place Value (MNU 2-02a MNU 2-03a)
N3: =ROUND(RAND()*(7-1)+1,0) -> 1
E4: =ROUND(RAND()*(9-1)+1,0) -> 3 | F4: =ROUND(RAND()*(9-0)+0,0) -> 3 | G4: =ROUND(RAND()*(9-0)+0,0) -> 5 | H4: 5 | I4: 0 | J4: 1 | K4: =ROUND(RAND()*(9-0)+0,0) -> 1 | O4: 1 | P4: Units
O5: 2 | P5: Tens
O6: 3 | P6: Hundred
C7: What value does the digit have highlighted above ? | O7: 4 | P7: Thousands
C8: ( You need to get the spelling right ! ) | O8: 5 | P8: Tens of Thousands
O9: 6 | P9: Hundreds of Thousands
O10: 7 | P10: Millions
N11: =VLOOKUP(N3,O4:P10,2) -> Units

Sheet Scales
B2: Reading Scales (MNU 2-02a MNU 2-03a)
C5: 45 | D5: =ROUND(RAND()*(8-1)+1,0) -> 5 | G5: Fuel Gauge | M5: =M6/2 -> 3 | AC5: =ROUND(RAND()*(50-1)+1,0) -> 42
B6: =C5*D5 -> 225 | I6: 0 | M6: =ROUND(RAND()*(10-1)+1,0)*2 -> 6 | R6: =ROUND(RAND()*(100-10)+10,0) -> 99 | AC6: =ROUND(RAND()*(5-1)+1,0)*2 -> 8
B7: =360-B6 -> 135
E9: =I13+M6 -> 18 | M9: =I6+M6 -> 6
I13: =M9+M6 -> 12
L14: =M5 -> 3 | M14: =M5*D5 -> 15 | AA14: =R6 -> 99
B15: The scale of the fuel gauge is | N15: litres | R15: The value on the indicator is
B17: The value on the fuel gauge is | N17: litres

Sheet Easy_Add_Sub
B2: Addition & Subtraction (MNU 2-02a MNU 2-03a)
E7: =ROUND(RAND()*(999-111)+111,0) -> 254 | M7: =ROUND(RAND()*(999-409)+409,0) -> 615
E8: + | F8: =ROUND(RAND()*(99-39)+39,0) -> 51 | K8: =1 -> 1 | L8: of | M8: - | N8: =ROUND(RAND()*(399-27)+27,0) -> 197
C9: =ROUND(RAND()*(10-2)+2,0) -> 7 | G9: =E7+F8 -> 305 | K9: =ROUND(RAND()*(10-2)+2,0) -> 9 | O9: =M7-N8 -> 418
E11: =ROUND(RAND()*(9999-234)+234,0) -> 3187 | M11: =ROUND(RAND()*(9999-4111)+4111,0) -> 4798
E12: + | F12: =ROUND(RAND()*(9999-234)+234,0) -> 5928 | M12: - | N12: =ROUND(RAND()*(3149-345)+345,0) -> 806
C13: =ROUND(RAND()*(10-2)+2,0) -> 4 | G13: =E11+F12 -> 9115 | K13: =ROUND(RAND()*(10-2)+2,0) -> 7 | O13: =M11-N12 -> 3992

Sheet Add_Sub_Layout
B2: Addition & Subtraction (MNU 2-02a MNU 2-03a)
B7: =ROUND(RAND()*(999-234)+234,0) -> 609 | D7: + | E7: =ROUND(RAND()*(999-234)+234,0) -> 899 | F7: =5*ROUND(RAND()*(19-1)+1,0) -> 70 | I7: =ROUND(RAND()*(999-411)+411,0) -> 939 | L7: - | M7: =ROUND(RAND()*(399-67)+67,0) -> 377 | N7: =5*ROUND(RAND()*(19-1)+1,0) -> 90
G8: =B7+E7 -> 1508 | O8: =I7-M7 -> 562
B11: =ROUND(RAND()*(9999-345)+345,0) -> 2213 | D11: + | E11: =ROUND(RAND()*(99999-234)+234,0) -> 73808 | F11: =5*ROUND(RAND()*(19-1)+1,0) -> 25 | I11: =ROUND(RAND()*(9999-1711)+1711,0) -> 8529 | L11: - | M11: =ROUND(RAND()*(1499-678)+678,0) -> 1235 | N11: =5*ROUND(RAND()*(19-1)+1,0) -> 50
G12: =B11+E11 -> 76021 | O12: =I11-M11 -> 7294

Sheet Easy_Multiply
B2: Multiplication (MNU 2-02a MNU 2-03a)
E7: =ROUND(RAND()*(999-111)+111,0) -> 383 | M7: =ROUND(RAND()*(999-111)+111,0) -> 485
E8: x | F8: =ROUND(RAND()*(9-3)+3,0) -> 7 | K8: =1 -> 1 | L8: of | M8: x | N8: =ROUND(RAND()*(9-3)+3,0) -> 7
C9: =ROUND(RAND()*(10-2)+2,0) -> 9 | G9: =E7*F8 -> 2681 | K9: =ROUND(RAND()*(10-2)+2,0) -> 3 | O9: =N8*M7 -> 3395
E11: =ROUND(RAND()*(999-111)+111,0) -> 632 | M11: =ROUND(RAND()*(999-111)+111,0) -> 420
E12: x | F12: =ROUND(RAND()*(9-3)+3,0) -> 9 | M12: x | N12: =ROUND(RAND()*(9-3)+3,0) -> 8
C13: =ROUND(RAND()*(10-2)+2,0) -> 2 | G13: =E11*F12 -> 5688 | K13: =ROUND(RAND()*(10-2)+2,0) -> 7 | O13: =M11*N12 -> 3360

Sheet Multiply_Layout
B2: Multiplication (MNU 2-02a MNU 2-03a)
B7: =ROUND(RAND()*(99-12)+12,0) -> 58 | D7: x | E7: =ROUND(RAND()*(9-2)+2,0) -> 5 | F7: =5*ROUND(RAND()*(19-1)+1,0) -> 40 | I7: =ROUND(RAND()*(99-12)+12,0) -> 79 | L7: x | M7: =ROUND(RAND()*(9-2)+2,0) -> 3 | N7: =5*ROUND(RAND()*(19-1)+1,0) -> 40
G8: =B7*E7 -> 290 | O8: =M7*I7 -> 237
B11: =ROUND(RAND()*(999-123)+123,0) -> 306 | D11: x | E11: =ROUND(RAND()*(9-2)+2,0) -> 3 | F11: =5*ROUND(RAND()*(19-1)+1,0) -> 80 | I11: =ROUND(RAND()*(9999-2736)+2736,0) -> 5491 | L11: x | M11: =ROUND(RAND()*(9-2)+2,0) -> 9 | N11: =5*ROUND(RAND()*(19-1)+1,0) -> 65
G12: =B11*E11 -> 918 | O12: =M11*I11 -> 49419

Sheet Easy_Division
B2: Division (MNU 2-02a MNU 2-03a)
E7: =ROUND(RAND()*(99-11)+11,0) -> 48 | M7: =ROUND(RAND()*(99-11)+11,0) -> 88
E8: x | F8: =ROUND(RAND()*(9-3)+3,0) -> 7 | K8: =1 -> 1 | L8: of | M8: x | N8: =ROUND(RAND()*(9-3)+3,0) -> 4
C9: =ROUND(RAND()*(10-2)+2,0) -> 5 | G9: =E7*F8 -> 336 | K9: =ROUND(RAND()*(10-2)+2,0) -> 10 | O9: =N8*M7 -> 352
D10: =F8 -> 7 | E10: =G9 -> 336 | L10: =N8 -> 4 | M10: =O9 -> 352
E11: =ROUND(RAND()*(999-111)+111,0) -> 847 | M11: =ROUND(RAND()*(999-111)+111,0) -> 516
E12: x | F12: =ROUND(RAND()*(9-3)+3,0) -> 8 | M12: x | N12: =ROUND(RAND()*(9-3)+3,0) -> 5
C13: =ROUND(RAND()*(10-2)+2,0) -> 4 | G13: =E11*F12 -> 6776 | K13: =ROUND(RAND()*(10-2)+2,0) -> 7 | O13: =M11*N12 -> 2580
D14: =F12 -> 8 | E14: =G13 -> 6776 | L14: =N12 -> 5 | M14: =O13 -> 2580

Sheet Division_Layout
B2: Division (MNU 2-02a MNU 2-03a)
B7: =E7*G8 -> 305 | D7: ÷ | E7: =ROUND(RAND()*(9-2)+2,0) -> 5 | F7: =5*ROUND(RAND()*(19-1)+1,0) -> 85 | I7: =M7*O8 -> 292 | L7: ÷ | M7: =ROUND(RAND()*(9-2)+2,0) -> 4 | N7: =5*ROUND(RAND()*(19-1)+1,0) -> 85
G8: =ROUND(RAND()*(99-12)+12,0) -> 61 | O8: =ROUND(RAND()*(99-12)+12,0) -> 73
B11: =E11*G12 -> 1274 | D11: ÷ | E11: =ROUND(RAND()*(9-2)+2,0) -> 2 | F11: =5*ROUND(RAND()*(19-1)+1,0) -> 25 | I11: =M11*O12 -> 1805 | L11: ÷ | M11: =ROUND(RAND()*(9-2)+2,0) -> 5 | N11: =5*ROUND(RAND()*(19-1)+1,0) -> 75
G12: =ROUND(RAND()*(799-312)+312,0) -> 637 | O12: =ROUND(RAND()*(799-312)+312,0) -> 361

Sheet x10x100x1000
B2: x10 , x100, x1000 (MNU 2-02a MNU 2-03a)
B7: =ROUND(RAND()*(99-11)+11,0) -> 22 | D7: x | E7: =POWER(10,ROUND(RAND()*(3-1)+1,0)) -> 10 | F7: =5*ROUND(RAND()*(19-1)+1,0) -> 95 | I7: =ROUND(RAND()*(999-11)+11,0) -> 283 | L7: x | M7: =POWER(10,ROUND(RAND()*(3-1)+1,0)) -> 100 | N7: =5*ROUND(RAND()*(19-1)+1,0) -> 85
G8: =B7*E7 -> 220 | O8: =M7*I7 -> 28300
B11: =ROUND(RAND()*(99-11)+11,0) -> 87 | D11: x | E11: =POWER(10,ROUND(RAND()*(3-1)+1,0)) -> 10 | F11: =5*ROUND(RAND()*(19-1)+1,0) -> 95 | I11: =ROUND(RAND()*(999-11)+11,0) -> 506 | L11: x | M11: =POWER(10,ROUND(RAND()*(3-1)+1,0)) -> 100 | N11: =5*ROUND(RAND()*(19-1)+1,0) -> 65
G12: =B11*E11 -> 870 | O12: =M11*I11 -> 50600

Sheet Rounding
C2: Rounding Whole Numbers (MNU 2-02a MNU 2-03a)
P3: =ROUND(RAND()*(2-1)+1,0) -> 1 | Q3: =POWER(10,P3) -> 10
D4: =O4 -> 7788 | O4: =ROUND(RAND()*(9999-134)+134,0) -> 7788
C6: ="Round this number to the nearest "&Q3&"." -> Round this number to the nearest 10. | P6: =P3-1 -> 0
O8: =ROUND(O4,-P3) -> 7790

Sheet x20x300
B2: x20 , x300 etc.. (MNU 2-02a MNU 2-03a)
B7: =ROUND(RAND()*(99-11)+1,0) -> 70 | D7: x | E7: =ROUND(RAND()*(9-1)+1,0)*POWER(10,ROUND(RAND()*(2-1)+1,0)) -> 300 | F7: =5*ROUND(RAND()*(19-1)+1,0) -> 45 | I7: =ROUND(RAND()*(9-1)+1,0)*POWER(10,ROUND(RAND()*(2-1)+1,0)) -> 400 | L7: x | M7: =ROUND(RAND()*(99-11)+1,0) -> 85
G8: =E7*B7 -> 21000 | O8: =M7*I7 -> 34000
B11: =ROUND(RAND()*(99-11)+1,0) -> 18 | D11: x | E11: =ROUND(RAND()*(9-1)+1,0)*POWER(10,ROUND(RAND()*(2-1)+1,0)) -> 800 | F11: =5*ROUND(RAND()*(19-1)+1,0) -> 80 | I11: =ROUND(RAND()*(9-1)+1,0)*POWER(10,ROUND(RAND()*(2-1)+1,0)) -> 60 | L11: x | M11: =ROUND(RAND()*(99-11)+1,0) -> 65
G12: =E11*B11 -> 14400 | O12: =I11*M11 -> 3900

Sheet Div10 , 100 ,1000
B2: ÷10 , ÷100, ÷1000 (MNU 2-02a MNU 2-03a)
B7: =G8*E7 -> 7200 | D7: ÷ | E7: =POWER(10,ROUND(RAND()*(3-1)+1,0)) -> 100 | F7: =5*ROUND(RAND()*(19-1)+1,0) -> 85 | I7: =O8*M7 -> 6200 | L7: ÷ | M7: =POWER(10,ROUND(RAND()*(3-1)+1,0)) -> 100 | N7: =5*ROUND(RAND()*(19-1)+1,0) -> 75
G8: =ROUND(RAND()*(99-11)+11,0) -> 72 | O8: =ROUND(RAND()*(99-11)+11,0) -> 62
B11: =G12*E11 -> 5300 | D11: ÷ | E11: =POWER(10,ROUND(RAND()*(3-1)+1,0)) -> 100 | F11: =5*ROUND(RAND()*(19-1)+1,0) -> 65 | I11: =O12*M11 -> 4100 | L11: ÷ | M11: =POWER(10,ROUND(RAND()*(3-1)+1,0)) -> 100 | N11: =5*ROUND(RAND()*(19-1)+1,0) -> 65
G12: =ROUND(RAND()*(99-11)+11,0) -> 53 | O12: =ROUND(RAND()*(99-11)+11,0) -> 41

Sheet Div 20 , 300
B2: ÷20 , ÷300 etc.. (MNU 2-02a MNU 2-03a)
B7: =E7*G8 -> 2000 | D7: ÷ | E7: =ROUND(RAND()*(9-1)+1,0)*POWER(10,ROUND(RAND()*(2-1)+1,0)) -> 40 | F7: =5*ROUND(RAND()*(19-1)+1,0) -> 15 | I7: =O8*M7 -> 850 | L7: ÷ | M7: =ROUND(RAND()*(9-1)+1,0)*POWER(10,ROUND(RAND()*(2-1)+1,0)) -> 10
G8: =ROUND(RAND()*(99-11)+1,0) -> 50 | O8: =ROUND(RAND()*(99-11)+1,0) -> 85
B11: =E11*G12 -> 53600 | D11: ÷ | E11: =ROUND(RAND()*(9-1)+1,0)*POWER(10,ROUND(RAND()*(2-1)+1,0)) -> 800 | F11: =5*ROUND(RAND()*(19-1)+1,0) -> 70 | I11: =O12*M11 -> 20800 | L11: ÷ | M11: =ROUND(RAND()*(9-1)+1,0)*POWER(10,ROUND(RAND()*(2-1)+1,0)) -> 400
G12: =ROUND(RAND()*(99-11)+1,0) -> 67 | O12: =ROUND(RAND()*(99-11)+1,0) -> 52
